[Event "Early-Titled-Tuesday-Blitz-October-10-2023"]
[Site "Chess.com"]
[Date "2023.10.10"]
[Round "10"]
[White "wannabe2700"]
[Black "ExchangeAB"]
[Result "1-0"]
[WhiteElo "2652"]
[BlackElo "2496"]
[TimeControl "180+1"]
[EndTime "9:50:42 PDT"]
[Termination "wannabe2700 won by checkmate"]

1. Nf3 {[%clk 0:03:00.9]} 1... d5 {[%clk 0:02:59.7]} 2. Ne5 {[%clk 0:03:01.2]}
2... Nd7 {[%clk 0:02:59]} 3. Nxf7 {[%clk 0:03:01.7]} 3... Kxf7 {[%clk
0:02:58.5]} 4. g3 {[%clk 0:03:02.6]} 4... e5 {[%clk 0:02:56.6]} 5. Bg2 {[%clk
0:03:03.5]} 5... Ngf6 {[%clk 0:02:56.6]} 6. O-O {[%clk 0:03:03.8]} 6... Bd6
{[%clk 0:02:56.2]} 7. d3 {[%clk 0:03:04.7]} 7... Re8 {[%clk 0:02:55.9]} 8. Nc3
{[%clk 0:03:05.2]} 8... c6 {[%clk 0:02:55.7]} 9. e4 {[%clk 0:03:05.6]} 9... d4
{[%clk 0:02:55.6]} 10. Ne2 {[%clk 0:03:06.2]} 10... Kg8 {[%clk 0:02:55.7]} 11.
f4 {[%clk 0:03:07.1]} 11... c5 {[%clk 0:02:55.2]} 12. f5 {[%clk 0:03:07.5]}
12... b5 {[%clk 0:02:32.3]} 13. h3 {[%clk 0:03:08.4]} 13... c4 {[%clk
0:02:30.4]} 14. g4 {[%clk 0:03:02.9]} 14... Nc5 {[%clk 0:02:28.1]} 15. Ng3
{[%clk 0:03:01.9]} 15... cxd3 {[%clk 0:02:11.9]} 16. cxd3 {[%clk 0:03:02.8]}
16... b4 {[%clk 0:02:09.9]} 17. g5 {[%clk 0:03:02.3]} 17... Nfd7 {[%clk
0:02:09.6]} 18. Qh5 {[%clk 0:02:51.8]} 18... Nxd3 {[%clk 0:01:32.8]} 19. f6
{[%clk 0:02:51.4]} 19... Rf8 {[%clk 0:01:12.2]} 20. f7+ {[%clk 0:02:51.5]} 20...
Kh8 {[%clk 0:01:06.3]} 21. g6 {[%clk 0:02:51.8]} 21... h6 {[%clk 0:00:31.8]} 22.
Bxh6 {[%clk 0:02:51.1]} 22... Nf6 {[%clk 0:00:22.8]} 23. Rxf6 {[%clk 0:02:50.2]}
23... Qxf6 {[%clk 0:00:17.7]} 24. Bg5# {[%clk 0:02:49.3]} 1-0

[Event "Early-Titled-Tuesday-Blitz-October-10-2023"]
[Site "Chess.com"]
[Date "2023.10.10"]
[Round "10"]
[White "BardArtem"]
[Black "lefonghua"]
[Result "1-0"]
[WhiteElo "2825"]
[BlackElo "2608"]
[TimeControl "180+1"]
[EndTime "9:50:47 PDT"]
[Termination "BardArtem won by resignation"]

1. e4 {[%clk 0:03:00.9]} 1... c5 {[%clk 0:03:00]} 2. c3 {[%clk 0:03:00.1]} 2...
Nf6 {[%clk 0:02:59.4]} 3. e5 {[%clk 0:03:00.6]} 3... Nd5 {[%clk 0:02:59.9]} 4.
Nf3 {[%clk 0:03:01.3]} 4... Nc6 {[%clk 0:02:59.7]} 5. Bc4 {[%clk 0:03:01.9]}
5... Nb6 {[%clk 0:02:59.8]} 6. Bb3 {[%clk 0:03:02.4]} 6... d6 {[%clk 0:03:00]}
7. exd6 {[%clk 0:03:03.3]} 7... Qxd6 {[%clk 0:03:00.3]} 8. O-O {[%clk
0:03:03.7]} 8... Be6 {[%clk 0:02:57.4]} 9. Bxe6 {[%clk 0:03:03.6]} 9... Qxe6
{[%clk 0:02:57.9]} 10. a4 {[%clk 0:03:04.5]} 10... Qd7 {[%clk 0:02:56.2]} 11. a5
{[%clk 0:03:04.5]} 11... Nd5 {[%clk 0:02:56.3]} 12. a6 {[%clk 0:03:05.3]} 12...
b6 {[%clk 0:02:54.4]} 13. d4 {[%clk 0:03:05.8]} 13... cxd4 {[%clk 0:02:54.6]}
14. Nxd4 {[%clk 0:03:05.2]} 14... e6 {[%clk 0:02:52.2]} 15. Nxc6 {[%clk
0:03:05.4]} 15... Qxc6 {[%clk 0:02:52.3]} 16. Qg4 {[%clk 0:03:05.8]} 16... h5
{[%clk 0:02:40.3]} 17. Qe2 {[%clk 0:02:50]} 17... h4 {[%clk 0:02:29.9]} 18. h3
{[%clk 0:02:49]} 18... Be7 {[%clk 0:02:27.1]} 19. Nd2 {[%clk 0:02:49.2]} 19...
O-O {[%clk 0:02:26.3]} 20. Nf3 {[%clk 0:02:48.9]} 20... Rad8 {[%clk 0:02:18.2]}
21. Rd1 {[%clk 0:02:42]} 21... Qc7 {[%clk 0:02:08.1]} 22. Bg5 {[%clk 0:02:31.7]}
22... Bxg5 {[%clk 0:02:02.1]} 23. Nxg5 {[%clk 0:02:32.6]} 23... Qf4 {[%clk
0:01:55.4]} 24. Qh5 {[%clk 0:02:06.6]} 24... Nf6 {[%clk 0:01:44]} 25. Qxf7+
{[%clk 0:02:06.5]} 25... Kh8 {[%clk 0:01:10.6]} 26. Rxd8 {[%clk 0:02:02]} 26...
Rxd8 {[%clk 0:01:07.9]} 27. Nxe6 {[%clk 0:02:02.5]} 1-0

[Event "Early-Titled-Tuesday-Blitz-October-10-2023"]
[Site "Chess.com"]
[Date "2023.10.10"]
[Round "10"]
[White "NovikovaGalina"]
[Black "VOneChess"]
[Result "1-0"]
[WhiteElo "2423"]
[BlackElo "2242"]
[TimeControl "180+1"]
[EndTime "9:50:52 PDT"]
[Termination "NovikovaGalina won by resignation"]

1. e4 {[%clk 0:03:00.9]} 1... c5 {[%clk 0:02:59.6]} 2. Nf3 {[%clk 0:03:01.4]}
2... d6 {[%clk 0:02:59.6]} 3. d4 {[%clk 0:03:02]} 3... cxd4 {[%clk 0:03:00.5]}
4. Nxd4 {[%clk 0:03:02.9]} 4... Nf6 {[%clk 0:03:00.9]} 5. Nc3 {[%clk 0:03:03.6]}
5... a6 {[%clk 0:03:01.2]} 6. Rg1 {[%clk 0:03:03.8]} 6... e5 {[%clk 0:02:59.4]}
7. Nb3 {[%clk 0:03:03.8]} 7... Be6 {[%clk 0:02:58.5]} 8. g4 {[%clk 0:03:03.1]}
8... Nc6 {[%clk 0:02:55.2]} 9. g5 {[%clk 0:03:02.4]} 9... Nd7 {[%clk 0:02:55.2]}
10. Be3 {[%clk 0:03:02.7]} 10... Be7 {[%clk 0:02:53.2]} 11. h4 {[%clk 0:03:03]}
11... Qc7 {[%clk 0:02:45.6]} 12. Qd2 {[%clk 0:03:01.8]} 12... O-O-O {[%clk
0:02:45.8]} 13. O-O-O {[%clk 0:02:59.8]} 13... Nc5 {[%clk 0:02:43.4]} 14. Nd5
{[%clk 0:02:58.6]} 14... Bxd5 {[%clk 0:02:41.6]} 15. exd5 {[%clk 0:02:59.5]}
15... Nxb3+ {[%clk 0:02:24.7]} 16. axb3 {[%clk 0:03:00.4]} 16... Nb8 {[%clk
0:02:12.4]} 17. Rg4 {[%clk 0:02:55.1]} 17... b5 {[%clk 0:02:04.2]} 18. Kb1
{[%clk 0:02:34]} 18... Nd7 {[%clk 0:02:01.5]} 19. c4 {[%clk 0:02:30.9]} 19... f5
{[%clk 0:02:00.3]} 20. gxf6 {[%clk 0:02:27.9]} 20... Nxf6 {[%clk 0:02:00.9]} 21.
Rxg7 {[%clk 0:02:24.1]} 21... bxc4 {[%clk 0:01:51.5]} 22. Bxc4 {[%clk
0:02:21.6]} 22... Kb7 {[%clk 0:01:48.3]} 23. Rc1 {[%clk 0:02:18.6]} 23... Qd7
{[%clk 0:01:42]} 24. Qa5 {[%clk 0:01:53.5]} 24... Qf5+ {[%clk 0:01:36.4]} 25.
Ka1 {[%clk 0:01:51]} 25... Nd7 {[%clk 0:01:35.1]} 26. Rxe7 {[%clk 0:01:47.4]}
1-0

[Event "Early-Titled-Tuesday-Blitz-October-10-2023"]
[Site "Chess.com"]
[Date "2023.10.10"]
[Round "10"]
[White "scarabee43"]
[Black "Wizard_97"]
[Result "1-0"]
[WhiteElo "2774"]
[BlackElo "2574"]
[TimeControl "180+1"]
[EndTime "9:50:57 PDT"]
[Termination "scarabee43 won by checkmate"]

1. d4 {[%clk 0:03:00.9]} 1... Nf6 {[%clk 0:02:58.3]} 2. Nf3 {[%clk 0:03:01.3]}
2... e6 {[%clk 0:02:58.4]} 3. c4 {[%clk 0:03:01.9]} 3... b6 {[%clk 0:02:59]} 4.
g3 {[%clk 0:03:01.8]} 4... Bb7 {[%clk 0:02:59.5]} 5. Bg2 {[%clk 0:03:01.6]} 5...
Be7 {[%clk 0:03:00.2]} 6. O-O {[%clk 0:03:01.9]} 6... O-O {[%clk 0:03:00.9]} 7.
Bf4 {[%clk 0:03:01.5]} 7... d5 {[%clk 0:03:01.2]} 8. Ne5 {[%clk 0:02:58.8]} 8...
Na6 {[%clk 0:03:01.4]} 9. Nc3 {[%clk 0:02:58.2]} 9... c5 {[%clk 0:03:02]} 10.
cxd5 {[%clk 0:02:54.3]} 10... Nxd5 {[%clk 0:02:58.5]} 11. Nxd5 {[%clk
0:02:54.1]} 11... Bxd5 {[%clk 0:02:58.3]} 12. e4 {[%clk 0:02:54.1]} 12... Bb7
{[%clk 0:02:58.1]} 13. d5 {[%clk 0:02:54.3]} 13... exd5 {[%clk 0:02:56.7]} 14.
exd5 {[%clk 0:02:54.9]} 14... Bd6 {[%clk 0:02:54.8]} 15. Qh5 {[%clk 0:02:50.8]}
15... Nc7 {[%clk 0:02:50.6]} 16. Rad1 {[%clk 0:02:48.5]} 16... g6 {[%clk
0:02:39.8]} 17. Qf3 {[%clk 0:02:41.2]} 17... g5 {[%clk 0:02:20.8]} 18. Nc6
{[%clk 0:02:36.6]} 18... Qd7 {[%clk 0:01:51.5]} 19. Bxg5 {[%clk 0:02:34.7]}
19... Rfe8 {[%clk 0:01:39.4]} 20. Bf6 {[%clk 0:02:31.7]} 20... Bxc6 {[%clk
0:01:26]} 21. Qh5 {[%clk 0:02:25]} 21... h6 {[%clk 0:00:31.7]} 22. Qxh6 {[%clk
0:02:23]} 22... Bf8 {[%clk 0:00:30.4]} 23. Qh8# {[%clk 0:02:22.7]} 1-0

[Event "Early-Titled-Tuesday-Blitz-October-10-2023"]
[Site "Chess.com"]
[Date "2023.10.10"]
[Round "10"]
[White "Rozhkov_V"]
[Black "chessculator16"]
[Result "0-1"]
[WhiteElo "2428"]
[BlackElo "2316"]
[TimeControl "180+1"]
[EndTime "9:51:00 PDT"]
[Termination "chessculator16 won by resignation"]

1. e4 {[%clk 0:03:00.9]} 1... c6 {[%clk 0:03:00.3]} 2. d3 {[%clk 0:03:00.8]}
2... d5 {[%clk 0:03:01.2]} 3. Nd2 {[%clk 0:03:01.2]} 3... e5 {[%clk 0:03:00.9]}
4. Ngf3 {[%clk 0:03:01.4]} 4... Bd6 {[%clk 0:03:01.2]} 5. d4 {[%clk 0:03:01.8]}
5... Nd7 {[%clk 0:02:57.6]} 6. exd5 {[%clk 0:02:57.8]} 6... cxd5 {[%clk
0:02:58]} 7. dxe5 {[%clk 0:02:54.3]} 7... Nxe5 {[%clk 0:02:58.9]} 8. Nxe5 {[%clk
0:02:51.1]} 8... Bxe5 {[%clk 0:02:59.1]} 9. Nf3 {[%clk 0:02:51.8]} 9... Bf6
{[%clk 0:02:59.1]} 10. Bb5+ {[%clk 0:02:50.2]} 10... Bd7 {[%clk 0:02:58.2]} 11.
Qe2+ {[%clk 0:02:19]} 11... Ne7 {[%clk 0:02:57.5]} 12. O-O {[%clk 0:02:16.4]}
12... O-O {[%clk 0:02:56.8]} 13. c3 {[%clk 0:02:15.9]} 13... a6 {[%clk
0:02:54.7]} 14. Bxd7 {[%clk 0:02:09.7]} 14... Qxd7 {[%clk 0:02:55.6]} 15. Bf4
{[%clk 0:02:10]} 15... Rad8 {[%clk 0:02:51.4]} 16. Rad1 {[%clk 0:02:07.5]} 16...
Rfe8 {[%clk 0:02:51.5]} 17. Qc2 {[%clk 0:02:05]} 17... Ng6 {[%clk 0:02:50.6]}
18. Bg3 {[%clk 0:02:05]} 18... Qc6 {[%clk 0:02:48.3]} 19. Qf5 {[%clk 0:01:56.9]}
19... Qc4 {[%clk 0:02:44.9]} 20. a3 {[%clk 0:01:46.4]} 20... d4 {[%clk
0:02:44.9]} 21. cxd4 {[%clk 0:01:44.6]} 21... Bxd4 {[%clk 0:02:44.2]} 22. Nxd4
{[%clk 0:01:44.5]} 22... Rxd4 {[%clk 0:02:43.3]} 23. h3 {[%clk 0:01:30.9]} 23...
Rxd1 {[%clk 0:02:39.7]} 24. Rxd1 {[%clk 0:01:31.8]} 24... Qb3 {[%clk 0:02:39.8]}
25. Rd7 {[%clk 0:01:23.1]} 25... h6 {[%clk 0:02:39.3]} 26. Kh2 {[%clk
0:01:06.7]} 26... Nf8 {[%clk 0:02:31.9]} 27. Be5 {[%clk 0:00:58.6]} 27... Nxd7
{[%clk 0:02:29.2]} 28. Bc3 {[%clk 0:00:45.8]} 28... Qe6 {[%clk 0:02:26.2]} 0-1

[Event "Early-Titled-Tuesday-Blitz-October-10-2023"]
[Site "Chess.com"]
[Date "2023.10.10"]
[Round "10"]
[White "GradualismUnleashed"]
[Black "kleopl"]
[Result "1-0"]
[WhiteElo "2565"]
[BlackElo "2467"]
[TimeControl "180+1"]
[EndTime "9:51:11 PDT"]
[Termination "GradualismUnleashed won by resignation"]

1. e4 {[%clk 0:02:57.8]} 1... c5 {[%clk 0:03:00]} 2. Nf3 {[%clk 0:02:57.6]} 2...
d6 {[%clk 0:03:00.3]} 3. d4 {[%clk 0:02:58.2]} 3... cxd4 {[%clk 0:03:01.2]} 4.
Nxd4 {[%clk 0:02:59]} 4... Nf6 {[%clk 0:03:01.5]} 5. Nc3 {[%clk 0:02:59.7]} 5...
a6 {[%clk 0:03:02.1]} 6. Be3 {[%clk 0:03:00.3]} 6... e5 {[%clk 0:03:02.1]} 7.
Nb3 {[%clk 0:03:00.9]} 7... Be7 {[%clk 0:03:02.5]} 8. f3 {[%clk 0:03:01.5]} 8...
Be6 {[%clk 0:03:02.3]} 9. Qd2 {[%clk 0:03:02.1]} 9... h5 {[%clk 0:03:02.6]} 10.
Nd5 {[%clk 0:03:00.4]} 10... Nxd5 {[%clk 0:03:01.5]} 11. exd5 {[%clk 0:03:01.3]}
11... Bf5 {[%clk 0:03:02]} 12. Be2 {[%clk 0:03:01.9]} 12... Nd7 {[%clk 0:03:01]}
13. O-O {[%clk 0:03:01.6]} 13... O-O {[%clk 0:02:53.7]} 14. Na5 {[%clk
0:03:00.4]} 14... Qc7 {[%clk 0:02:50.1]} 15. c4 {[%clk 0:03:00.2]} 15... Bf6
{[%clk 0:02:25.7]} 16. b4 {[%clk 0:02:53.4]} 16... Bg6 {[%clk 0:02:11.5]} 17.
Rac1 {[%clk 0:02:51.3]} 17... Rfe8 {[%clk 0:02:10.2]} 18. c5 {[%clk 0:02:42.1]}
18... dxc5 {[%clk 0:02:05.9]} 19. d6 {[%clk 0:02:41.9]} 19... Qc8 {[%clk
0:02:01.1]} 20. bxc5 {[%clk 0:02:42.3]} 20... e4 {[%clk 0:01:57.5]} 21. fxe4
{[%clk 0:02:39.8]} 21... Bxe4 {[%clk 0:01:53]} 22. Bxh5 {[%clk 0:02:38.5]} 22...
g6 {[%clk 0:01:47.1]} 23. Bg4 {[%clk 0:02:36.8]} 23... Bg7 {[%clk 0:01:45.3]}
24. Bd4 {[%clk 0:02:18.6]} 24... f5 {[%clk 0:01:38.2]} 25. Bxg7 {[%clk
0:02:15.3]} 25... Kxg7 {[%clk 0:01:37.1]} 26. Bf3 {[%clk 0:02:11]} 26... Bxf3
{[%clk 0:01:15]} 27. Rxf3 {[%clk 0:02:08.9]} 27... Nxc5 {[%clk 0:01:02.9]} 28.
Qd4+ {[%clk 0:02:05.8]} 28... Kf7 {[%clk 0:00:57.3]} 29. Rxc5 {[%clk 0:01:58]}
1-0

[Event "Early-Titled-Tuesday-Blitz-October-10-2023"]
[Site "Chess.com"]
[Date "2023.10.10"]
[Round "10"]
[White "kuanysh1981"]
[Black "Russian_berezka"]
[Result "0-1"]
[WhiteElo "2526"]
[BlackElo "2656"]
[TimeControl "180+1"]
[EndTime "9:51:32 PDT"]
[Termination "Russian_berezka won by resignation"]

1. d4 {[%clk 0:03:00.3]} 1... f5 {[%clk 0:02:58.2]} 2. g3 {[%clk 0:02:57.3]}
2... Nf6 {[%clk 0:02:58.6]} 3. Bg2 {[%clk 0:02:57.9]} 3... g6 {[%clk 0:02:59.4]}
4. h4 {[%clk 0:02:57.3]} 4... Bg7 {[%clk 0:02:59.1]} 5. Nh3 {[%clk 0:02:58.2]}
5... Nc6 {[%clk 0:02:53.2]} 6. O-O {[%clk 0:02:59.1]} 6... O-O {[%clk
0:02:48.4]} 7. c4 {[%clk 0:02:53.2]} 7... e5 {[%clk 0:02:37.5]} 8. Bxc6 {[%clk
0:02:37.4]} 8... dxc6 {[%clk 0:02:30.8]} 9. dxe5 {[%clk 0:02:37.4]} 9... Ne4
{[%clk 0:02:19.2]} 10. Qxd8 {[%clk 0:02:36.6]} 10... Rxd8 {[%clk 0:02:20.1]} 11.
f4 {[%clk 0:02:30.7]} 11... Nxg3 {[%clk 0:02:18.5]} 12. Re1 {[%clk 0:02:24.7]}
12... Nxe2+ {[%clk 0:01:56.1]} 13. Rxe2 {[%clk 0:02:05.1]} 13... Rd1+ {[%clk
0:01:56.4]} 14. Kf2 {[%clk 0:02:05.3]} 14... Rxc1 {[%clk 0:01:57.1]} 15. Re1
{[%clk 0:02:06.1]} 15... Rxc4 {[%clk 0:01:33.2]} 16. Nd2 {[%clk 0:02:05.9]}
16... Rc2 {[%clk 0:01:32.2]} 17. Ke3 {[%clk 0:02:02.8]} 17... Be6 {[%clk
0:01:25.9]} 18. Ng5 {[%clk 0:01:49]} 18... Bd5 {[%clk 0:01:16.8]} 19. b3 {[%clk
0:01:43.6]} 19... Bf8 {[%clk 0:01:14.5]} 20. Rac1 {[%clk 0:01:39.7]} 20... Rxa2
{[%clk 0:01:07.8]} 21. Nc4 {[%clk 0:01:38]} 21... Bc5+ {[%clk 0:01:03.6]} 22.
Kd3 {[%clk 0:01:38]} 22... Rd8 {[%clk 0:01:01.8]} 23. Kc3 {[%clk 0:01:37.9]}
23... b5 {[%clk 0:01:00.9]} 24. b4 {[%clk 0:01:33.1]} 24... Bxc4 {[%clk
0:00:59.6]} 25. bxc5 {[%clk 0:01:32.7]} 25... Rd3+ {[%clk 0:00:59]} 0-1

[Event "Early-Titled-Tuesday-Blitz-October-10-2023"]
[Site "Chess.com"]
[Date "2023.10.10"]
[Round "10"]
[White "MartinMatthiesen"]
[Black "Zhigalko_Sergei"]
[Result "0-1"]
[WhiteElo "2511"]
[BlackElo "2916"]
[TimeControl "180+1"]
[EndTime "9:51:35 PDT"]
[Termination "Zhigalko_Sergei won by resignation"]

1. d4 {[%clk 0:03:00.9]} 1... Nf6 {[%clk 0:03:00.2]} 2. c4 {[%clk 0:03:00.4]}
2... e6 {[%clk 0:03:00.8]} 3. Nf3 {[%clk 0:02:59.9]} 3... b6 {[%clk 0:03:00.9]}
4. g3 {[%clk 0:02:59.8]} 4... Ba6 {[%clk 0:03:00.8]} 5. b3 {[%clk 0:02:59.2]}
5... Bb4+ {[%clk 0:03:01.1]} 6. Bd2 {[%clk 0:02:58.8]} 6... Be7 {[%clk
0:03:01.8]} 7. Nc3 {[%clk 0:02:58.8]} 7... O-O {[%clk 0:03:01.6]} 8. e4 {[%clk
0:02:57.9]} 8... d5 {[%clk 0:03:01.8]} 9. cxd5 {[%clk 0:02:57.7]} 9... Bxf1
{[%clk 0:03:02.7]} 10. Kxf1 {[%clk 0:02:57.3]} 10... exd5 {[%clk 0:03:03.6]} 11.
e5 {[%clk 0:02:57.2]} 11... Ne4 {[%clk 0:03:04.2]} 12. Kg2 {[%clk 0:02:56.2]}
12... Qd7 {[%clk 0:03:00.6]} 13. Qe2 {[%clk 0:02:53.7]} 13... Nxc3 {[%clk
0:03:00.9]} 14. Bxc3 {[%clk 0:02:53.4]} 14... Nc6 {[%clk 0:03:01.3]} 15. Ne1
{[%clk 0:02:40.2]} 15... Nd8 {[%clk 0:02:56.5]} 16. f4 {[%clk 0:02:39.4]} 16...
f5 {[%clk 0:02:55.7]} 17. exf6 {[%clk 0:02:32.7]} 17... Bxf6 {[%clk 0:02:55.8]}
18. Nf3 {[%clk 0:02:32.2]} 18... Ne6 {[%clk 0:02:55.5]} 19. h4 {[%clk
0:02:04.6]} 19... Rae8 {[%clk 0:02:45.4]} 20. Qd3 {[%clk 0:02:03.4]} 20... Nxf4+
{[%clk 0:02:07.9]} 21. gxf4 {[%clk 0:02:01.9]} 21... Qg4+ {[%clk 0:02:07.3]} 22.
Kf2 {[%clk 0:02:01.3]} 22... Qxf4 {[%clk 0:02:06.3]} 23. Kg2 {[%clk 0:00:18.4]}
23... Re3 {[%clk 0:02:03]} 0-1

[Event "Early-Titled-Tuesday-Blitz-October-10-2023"]
[Site "Chess.com"]
[Date "2023.10.10"]
[Round "10"]
[White "attack2mateU"]
[Black "whiteglovethief"]
[Result "0-1"]
[WhiteElo "2715"]
[BlackElo "2573"]
[TimeControl "180+1"]
[EndTime "9:51:41 PDT"]
[Termination "whiteglovethief won by resignation"]

1. e4 {[%clk 0:02:57.5]} 1... e6 {[%clk 0:03:00.2]} 2. d4 {[%clk 0:02:56.5]}
2... d5 {[%clk 0:03:01.1]} 3. Nc3 {[%clk 0:02:56.7]} 3... Bb4 {[%clk 0:02:59.6]}
4. e5 {[%clk 0:02:56.9]} 4... Ne7 {[%clk 0:02:59.6]} 5. a3 {[%clk 0:02:57.1]}
5... Bxc3+ {[%clk 0:02:59.9]} 6. bxc3 {[%clk 0:02:58]} 6... c5 {[%clk
0:03:00.3]} 7. h4 {[%clk 0:02:58.6]} 7... Nbc6 {[%clk 0:02:59]} 8. h5 {[%clk
0:02:55]} 8... h6 {[%clk 0:02:57.2]} 9. Qg4 {[%clk 0:02:53.7]} 9... Qa5 {[%clk
0:02:50.4]} 10. Bd2 {[%clk 0:02:53]} 10... Bd7 {[%clk 0:02:47.4]} 11. Qxg7
{[%clk 0:02:35.1]} 11... O-O-O {[%clk 0:02:48.3]} 12. Qf6 {[%clk 0:02:29.2]}
12... Qa4 {[%clk 0:02:49.2]} 13. Nf3 {[%clk 0:01:47.4]} 13... Qxc2 {[%clk
0:02:50.1]} 14. dxc5 {[%clk 0:01:47.4]} 14... Nf5 {[%clk 0:02:39.1]} 15. Rc1
{[%clk 0:01:43.4]} 15... Qe4+ {[%clk 0:02:28.4]} 16. Be2 {[%clk 0:01:43.3]}
16... Rhg8 {[%clk 0:02:21]} 17. Kf1 {[%clk 0:01:23]} 17... Rxg2 {[%clk
0:02:15.9]} 18. Bxh6 {[%clk 0:01:08.1]} 18... Rdg8 {[%clk 0:01:49.1]} 19. Qxf7
{[%clk 0:01:08.1]} 19... Nd8 {[%clk 0:01:42]} 20. Qf6 {[%clk 0:00:57.1]} 20...
Ng3+ {[%clk 0:01:37.2]} 21. Kxg2 {[%clk 0:00:57.2]} 21... Nxh5+ {[%clk
0:01:24.1]} 22. Qg5 {[%clk 0:00:50.3]} 22... Nf4+ {[%clk 0:01:22.3]} 0-1

[Event "Early-Titled-Tuesday-Blitz-October-10-2023"]
[Site "Chess.com"]
[Date "2023.10.10"]
[Round "10"]
[White "mishanick"]
[Black "remi04"]
[Result "1-0"]
[WhiteElo "3082"]
[BlackElo "2867"]
[TimeControl "180+1"]
[EndTime "9:51:44 PDT"]
[Termination "mishanick won by resignation"]

1. d4 {[%clk 0:03:00.9]} 1... Nf6 {[%clk 0:03:00.3]} 2. c4 {[%clk 0:03:01.5]}
2... e6 {[%clk 0:03:00.6]} 3. Nc3 {[%clk 0:03:02.1]} 3... Bb4 {[%clk 0:02:59.8]}
4. e3 {[%clk 0:03:02.2]} 4... O-O {[%clk 0:02:58.5]} 5. Bd3 {[%clk 0:03:02.8]}
5... d5 {[%clk 0:02:58.7]} 6. a3 {[%clk 0:03:03.2]} 6... Bxc3+ {[%clk
0:02:57.8]} 7. bxc3 {[%clk 0:03:04.1]} 7... c5 {[%clk 0:02:57.3]} 8. cxd5 {[%clk
0:03:03.9]} 8... exd5 {[%clk 0:02:56.6]} 9. Ne2 {[%clk 0:03:04.3]} 9... b6
{[%clk 0:02:54.8]} 10. f3 {[%clk 0:03:04.1]} 10... Ba6 {[%clk 0:02:54.8]} 11.
O-O {[%clk 0:03:04.3]} 11... Re8 {[%clk 0:02:49.8]} 12. Ng3 {[%clk 0:03:04.5]}
12... Bxd3 {[%clk 0:02:38.6]} 13. Qxd3 {[%clk 0:03:05.4]} 13... Qc8 {[%clk
0:02:36.7]} 14. e4 {[%clk 0:02:56.8]} 14... cxd4 {[%clk 0:02:31]} 15. cxd4
{[%clk 0:02:55.7]} 15... Qa6 {[%clk 0:02:22.2]} 16. Qe3 {[%clk 0:02:53.7]} 16...
Nc6 {[%clk 0:02:11.5]} 17. e5 {[%clk 0:02:53.2]} 17... Nd7 {[%clk 0:02:04.1]}
18. Nf5 {[%clk 0:02:52.5]} 18... Re6 {[%clk 0:01:40.4]} 19. f4 {[%clk
0:02:27.2]} 19... Nf8 {[%clk 0:01:22.3]} 20. Nxg7 {[%clk 0:01:52.5]} 20... Rg6
{[%clk 0:01:05.8]} 21. Nf5 {[%clk 0:01:49.7]} 21... Ne6 {[%clk 0:00:58.7]} 22.
Bb2 {[%clk 0:01:46.8]} 22... Kh8 {[%clk 0:00:52.2]} 23. Nd6 {[%clk 0:01:43.7]}
23... Rag8 {[%clk 0:00:39.6]} 24. Nxf7+ {[%clk 0:01:42.9]} 24... Kg7 {[%clk
0:00:40.1]} 25. f5 {[%clk 0:01:43.4]} 1-0

[Event "Early-Titled-Tuesday-Blitz-October-10-2023"]
[Site "Chess.com"]
[Date "2023.10.10"]
[Round "10"]
[White "cukin84"]
[Black "JesseFebruary"]
[Result "1-0"]
[WhiteElo "2207"]
[BlackElo "2066"]
[TimeControl "180+1"]
[EndTime "9:52:02 PDT"]
[Termination "cukin84 won by checkmate"]

1. e4 {[%clk 0:03:00.9]} 1... e6 {[%clk 0:02:59.8]} 2. d4 {[%clk 0:02:59.7]}
2... d5 {[%clk 0:02:59.8]} 3. Nc3 {[%clk 0:02:56]} 3... Nf6 {[%clk 0:02:59.4]}
4. e5 {[%clk 0:02:55.9]} 4... Nfd7 {[%clk 0:02:58.4]} 5. f4 {[%clk 0:02:55.7]}
5... c5 {[%clk 0:02:58.6]} 6. Nf3 {[%clk 0:02:55.1]} 6... Nc6 {[%clk 0:02:58.8]}
7. Be3 {[%clk 0:02:54.7]} 7... a6 {[%clk 0:02:57.1]} 8. Qd2 {[%clk 0:02:54.7]}
8... b5 {[%clk 0:02:57.1]} 9. Nd1 {[%clk 0:02:52]} 9... Qb6 {[%clk 0:02:47.4]}
10. c3 {[%clk 0:02:51.7]} 10... cxd4 {[%clk 0:02:46]} 11. Nxd4 {[%clk
0:02:50.9]} 11... Nxd4 {[%clk 0:02:44.8]} 12. Bxd4 {[%clk 0:02:50.5]} 12... Bc5
{[%clk 0:02:45.5]} 13. Be2 {[%clk 0:02:41.5]} 13... Bb7 {[%clk 0:02:45.1]} 14.
O-O {[%clk 0:02:39.9]} 14... O-O {[%clk 0:02:40.7]} 15. Kh1 {[%clk 0:02:39.6]}
15... Rac8 {[%clk 0:02:36.8]} 16. Bd3 {[%clk 0:02:39.2]} 16... Qd8 {[%clk
0:02:34.2]} 17. f5 {[%clk 0:02:35]} 17... exf5 {[%clk 0:02:27.3]} 18. Bxf5
{[%clk 0:02:33.6]} 18... Re8 {[%clk 0:02:22.7]} 19. Qd3 {[%clk 0:02:20.6]} 19...
g6 {[%clk 0:02:22.3]} 20. Bxd7 {[%clk 0:02:19.4]} 20... Qxd7 {[%clk 0:02:21.8]}
21. Ne3 {[%clk 0:02:14.8]} 21... h5 {[%clk 0:02:10.8]} 22. Rf3 {[%clk
0:02:10.6]} 22... Bxd4 {[%clk 0:02:09.4]} 23. cxd4 {[%clk 0:02:10]} 23... Rc4
{[%clk 0:02:00.1]} 24. h3 {[%clk 0:02:02.1]} 24... Rec8 {[%clk 0:01:58.8]} 25.
Raf1 {[%clk 0:02:01.4]} 25... Rc1 {[%clk 0:01:55.2]} 26. Nd1 {[%clk 0:01:56.8]}
26... Rf8 {[%clk 0:01:47.6]} 27. Qd2 {[%clk 0:01:56.3]} 27... Rc4 {[%clk
0:01:35.8]} 28. Qh6 {[%clk 0:01:55.4]} 28... Rxd4 {[%clk 0:01:32.5]} 29. Ne3
{[%clk 0:01:43.3]} 29... Rd2 {[%clk 0:01:01.7]} 30. Nf5 {[%clk 0:01:40.2]} 30...
gxf5 {[%clk 0:01:00.5]} 31. Rxf5 {[%clk 0:01:40.2]} 31... Rxg2 {[%clk
0:00:56.3]} 32. Kxg2 {[%clk 0:01:39.2]} 32... d4+ {[%clk 0:00:56.6]} 33. Kh2
{[%clk 0:01:37.4]} 33... f6 {[%clk 0:00:53.7]} 34. Rg1+ {[%clk 0:01:32.2]} 34...
Kf7 {[%clk 0:00:52.8]} 35. Rxf6+ {[%clk 0:01:27.2]} 35... Ke8 {[%clk 0:00:52.5]}
36. Qxf8# {[%clk 0:01:26.7]} 1-0